bitfinex/quotes_BTCUSD_20240721
["timestamp","ask_amount","ask_price","bid_price","bid_amount"]
[1721546146750,0.94612155,66850.0,66849.0,2.35485391]
[1721546147141,0.94612155,66850.0,66849.0,2.34085391]
[1721546147296,0.94612155,66850.0,66849.0,2.36885391]
[1721546147901,1.02562155,66850.0,66849.0,1.90680891]
[1721546148080,1.02562155,66850.0,66849.0,1.98900891]
[1721546149126,1.02562155,66850.0,66849.0,1.98950891]
[1721546149530,1.02562155,66850.0,66849.0,1.96150891]
[1721546149728,1.02562155,66850.0,66849.0,1.96175823]
[1721546149934,1.02562155,66850.0,66849.0,1.97575823]
[1721546150589,1.02562155,66850.0,66849.0,1.98975823]
[1721546150976,1.02562155,66850.0,66849.0,1.97575823]
[1721546151893,1.02562155,66850.0,66849.0,1.98975823]
[1721546152310,0.94612155,66850.0,66849.0,1.98975823]
[1721546154804,0.94612155,66850.0,66849.0,2.88865823]
[1721546155009,0.94612155,66850.0,66849.0,2.12865823]
[1721546155430,0.94612155,66850.0,66849.0,2.28387547]
[1721546155846,0.94612155,66850.0,66849.0,2.28666947]
[1721546156057,0.94612155,66850.0,66849.0,2.28655786]
[1721546157262,0.78147098,66850.0,66849.0,2.52590286]
[1721546157679,0.78147098,66850.0,66849.0,2.59289839]
[1721546157807,0.78147098,66850.0,66849.0,2.52590286]
[1721546158021,0.75155298,66850.0,66849.0,2.59289839]
[1721546158221,0.63188098,66850.0,66849.0,2.90139196]
[1721546158429,0.63188098,66850.0,66849.0,2.57610439]
[1721546158634,0.63188098,66850.0,66849.0,2.51190286]
[1721546159072,0.48229098,66850.0,66849.0,2.51190286]
[1721546159271,0.48229098,66850.0,66849.0,2.59002434]
[1721546159488,0.48229098,66850.0,66849.0,2.59281834]
[1721546159696,0.48229098,66850.0,66849.0,2.91585669]
[1721546159896,0.45237298,66850.0,66849.0,2.84889195]
[1721546160100,0.39253698,66850.0,66849.0,2.86289195]
[1721546160439,0.33270098,66850.0,66849.0,2.90187597]
[1721546160638,0.33270098,66850.0,66849.0,2.57883762]
[1721546160840,0.33270098,66850.0,66849.0,2.56483762]
[1721546161042,0.18311098,66850.0,66849.0,2.88823167]
[1721546161216,0.14985646,66850.0,66849.0,2.56483762]
[1721546161471,0.14985646,66850.0,66849.0,2.88541681]
[1721546161655,0.14985646,66850.0,66849.0,2.40367643]
[1721546162302,0.14985646,66850.0,66849.0,2.35901421]
[1721546162887,0.14985646,66850.0,66849.0,2.37301421]
[1721546163646,0.14985646,66850.0,66849.0,2.38701421]
[1721546163848,0.14985646,66850.0,66849.0,2.37301421]
[1721546164239,0.14985646,66850.0,66849.0,2.38701421]
[1721546164707,0.14985646,66850.0,66849.0,2.38700259]
[1721546164900,0.14985646,66850.0,66849.0,2.38420859]
[1721546165105,0.14985646,66850.0,66849.0,3.00700259]
[1721546165308,0.14985646,66850.0,66849.0,3.39813471]
[1721546165504,0.14985646,66850.0,66849.0,3.4674162]
[1721546165681,0.14985646,66850.0,66849.0,3.53165036]
[1721546166012,0.14985646,66850.0,66849.0,2.91165036]
[1721546166211,0.14985646,66850.0,66849.0,2.8474162]
[1721546166413,0.03018446,66850.0,66849.0,3.3846222]
[1721546166614,0.00026646,66850.0,66849.0,3.3846222]
[1721546166854,0.00026646,66850.0,66849.0,3.3874162]
[1721546167262,4.6e-07,66850.0,66849.0,3.4474162]
[1721546167389,4.6e-07,66850.0,66849.0,3.73676099]
[1721546167590,0.00837,66856.0,66855.0,0.01203933]
[1721546167822,0.00837,66856.0,66855.0,0.76029479]
[1721546168024,0.00837,66856.0,66855.0,0.86029479]
[1721546168949,0.00837,66856.0,66855.0,0.80019479]
[1721546169495,0.00837,66856.0,66855.0,2.11647079]
[1721546170075,0.00837,66856.0,66855.0,2.13047079]
[1721546170278,0.00837,66856.0,66855.0,2.17515964]
[1721546170710,0.00837,66856.0,66855.0,2.13047079]
[1721546171091,0.00837,66856.0,66855.0,2.14447079]
[1721546171294,0.00837,66856.0,66855.0,2.18915964]
[1721546172319,0.00837,66856.0,66855.0,2.14447079]
[1721546173030,0.00837,66856.0,66855.0,2.46539283]
[1721546173235,0.00837,66856.0,66855.0,2.6168512]
[1721546173690,0.00837,66856.0,66855.0,1.40736822]
[1721546173691,0.14767,66856.0,66855.0,1.40736822]
[1721546173911,0.14767,66856.0,66855.0,1.30580328]
[1721546174411,0.14767,66856.0,66855.0,1.29180328]
[1721546174623,0.14767,66856.0,66855.0,1.30580328]
[1721546175026,0.14767,66856.0,66855.0,0.90487181]
[1721546175239,0.14767,66856.0,66855.0,0.65154881]
[1721546175449,0.14767,66856.0,66855.0,0.89087181]
[1721546175869,0.14767,66856.0,66855.0,0.87687181]
[1721546176273,0.14767,66856.0,66855.0,0.89087181]
[1721546176620,0.14767,66856.0,66855.0,0.90487181]
[1721546176822,0.14767,66856.0,66855.0,0.89088092]
[1721546177236,0.14767,66856.0,66855.0,0.87688092]
[1721546177428,0.14767,66856.0,66855.0,0.90388092]
[1721546177881,0.14767,66856.0,66855.0,1.16620392]
[1721546178623,0.14767,66856.0,66855.0,1.26620392]
[1721546178972,0.14767,66856.0,66855.0,1.42837159]
[1721546179172,0.14767,66856.0,66855.0,1.26620392]
[1721546179372,0.14767,66856.0,66855.0,1.42837159]
[1721546179959,0.14767,66856.0,66855.0,1.42826934]
[1721546180357,0.14767,66856.0,66855.0,1.26619306]
[1721546180685,0.14767,66856.0,66855.0,1.42826934]
[1721546180842,0.14767,66856.0,66855.0,1.26619306]
[1721546181048,0.14767,66856.0,66855.0,1.42826934]
[1721546181494,0.14767,66856.0,66855.0,1.42858178]
[1721546183244,0.14767,66856.0,66855.0,1.42886045]
[1721546183495,0.14767,66856.0,66855.0,1.42886047]
[1721546183901,0.14767,66856.0,66855.0,1.49706047]
[1721546184927,0.14767,66856.0,66855.0,1.26619082]
[1721546186366,0.14767,66856.0,66855.0,1.26619608]
[1721546188721,0.19717,66856.0,66855.0,0.90387308]
[1721546189308,0.19717,66856.0,66855.0,0.9038851]
[1721546190141,0.23563067,66856.0,66855.0,0.6645621]
[1721546192319,0.23563067,66856.0,66855.0,0.66456227]
[1721546192593,0.18613067,66856.0,66855.0,0.66456227]
[1721546192840,0.23563067,66856.0,66855.0,0.66456227]
[1721546193861,0.23563067,66856.0,66855.0,0.42523927]
[1721546194062,0.23563067,66856.0,66855.0,0.30557827]
[1721546194605,0.23563067,66856.0,66855.0,0.42523927]
[1721546194921,0.23563067,66856.0,66855.0,0.41223927]
[1721546195242,0.23563067,66856.0,66855.0,0.28804274]
[1721546195445,0.23563067,66856.0,66855.0,0.53744362]
[1721546195776,0.23563067,66856.0,66855.0,0.41224318]
[1721546196063,0.18613067,66856.0,66855.0,0.41224318]
[1721546196267,0.23563067,66856.0,66855.0,0.39824318]
[1721546196619,0.23563067,66856.0,66855.0,0.40224318]
[1721546198479,0.18613067,66856.0,66855.0,0.64156618]
[1721546198688,0.23563067,66856.0,66855.0,0.64156618]
[1721546199266,0.22563067,66856.0,66855.0,0.64156618]
[1721546199690,0.17613067,66856.0,66855.0,0.64156618]
[1721546199869,0.17613067,66856.0,66855.0,0.88088918]
[1721546200592,0.13767,66856.0,66855.0,1.14321218]
[1721546200750,0.13767,66856.0,66855.0,1.14320643]
[1721546201556,0.13767,66856.0,66855.0,1.14320569]
[1721546203686,0.002,66859.0,66858.0,0.837595]
[1721546203911,0.002,66859.0,66858.0,1.11617069]
[1721546204113,0.148,66859.0,66858.0,1.11617069]
[1721546204627,0.148,66859.0,66858.0,0.99197674]
[1721546204825,0.148,66859.0,66858.0,1.11616964]
[1721546205666,0.15,66859.0,66858.0,1.11616964]
[1721546205906,0.15,66859.0,66858.0,1.13916964]
[1721546206190,0.148,66859.0,66858.0,1.21026964]
[1721546206748,0.148,66859.0,66858.0,1.20726964]
[1721546207328,0.148,66859.0,66858.0,1.22826964]
[1721546208007,0.148,66859.0,66858.0,1.22825994]
[1721546209082,0.002,66859.0,66858.0,1.46757294]
[1721546209255,0.002,66859.0,66858.0,1.56757294]
[1721546210903,0.002,66859.0,66858.0,1.56757219]
[1721546212698,0.00284,66859.0,66858.0,1.56757219]
[1721546214121,0.00284,66859.0,66858.0,1.56757119]
[1721546215403,0.00284,66859.0,66858.0,1.72935482]
[1721546216527,0.00284,66859.0,66858.0,1.72985482]
[1721546216731,0.00284,66859.0,66858.0,1.80825482]
[1721546216886,0.00284,66859.0,66858.0,1.87033931]
[1721546217090,0.00284,66859.0,66858.0,1.80836884]
[1721546217465,0.00284,66859.0,66858.0,1.87045281]
[1721546217666,0.00284,66859.0,66858.0,1.88199214]
[1721546217865,0.00284,66859.0,66858.0,1.88149146]
[1721546218067,0.00284,66859.0,66858.0,1.74100817]
[1721546218267,0.14734,66859.0,66858.0,1.74100817]
[1721546218469,0.14734,66859.0,66858.0,1.73300817]
[1721546219526,0.14734,66859.0,66858.0,1.74600817]
[1721546219899,0.14734,66859.0,66858.0,1.73446884]
[1721546220317,0.14734,66859.0,66858.0,1.72104341]
[1721546220945,0.14734,66859.0,66858.0,1.70804341]
[1721546221120,0.14734,66859.0,66858.0,1.54656088]
[1721546221433,0.14734,66859.0,66858.0,1.48273041]
[1721546221629,0.14734,66859.0,66858.0,1.32124788]
[1721546221846,0.14734,66859.0,66858.0,1.48273041]
[1721546222077,0.14734,66859.0,66858.0,1.32124788]
[1721546222263,0.14734,66859.0,66858.0,1.48273041]
[1721546222437,0.14734,66859.0,66858.0,1.32124788]
[1721546222645,0.14734,66859.0,66858.0,1.35855927]
[1721546222859,0.14734,66859.0,66858.0,1.33524787]
[1721546223053,0.14734,66859.0,66858.0,1.49701455]
[1721546223222,0.14734,66859.0,66858.0,1.32124787]
[1721546223572,0.14734,66859.0,66858.0,1.48301455]
[1721546223774,0.14734,66859.0,66858.0,1.33524787]
[1721546224022,0.14734,66859.0,66858.0,1.49701455]
[1721546224193,0.14734,66859.0,66858.0,1.33524787]
[1721546224394,0.14734,66859.0,66858.0,1.49701455]
[1721546224636,0.14734,66859.0,66858.0,1.33524787]
[1721546224840,0.14734,66859.0,66858.0,1.49701455]
[1721546224986,0.14734,66859.0,66858.0,1.33524787]
[1721546225186,0.14734,66859.0,66858.0,1.49701455]
[1721546225389,0.14734,66859.0,66858.0,1.33524787]
[1721546225708,0.14734,66859.0,66858.0,1.49701455]
[1721546225973,0.14734,66859.0,66858.0,1.33524788]
[1721546226179,0.14734,66859.0,66858.0,1.49711851]
[1721546228379,0.08584,66859.0,66858.0,1.49711851]
[1721546229169,0.08584,66859.0,66858.0,1.49692457]
[1721546232206,0.08565998,66859.0,66858.0,1.4970268]
[1721546233593,0.00265998,66859.0,66858.0,1.4970268]
[1721546233916,0.00265998,66859.0,66858.0,1.7363398]
[1721546235211,0.00265998,66859.0,66858.0,1.4970268]
[1721546235431,0.00265998,66859.0,66858.0,1.55906644]
[1721546238478,0.00265998,66859.0,66858.0,1.55928343]
[1721546239431,0.00265998,66859.0,66858.0,1.86509643]
[1721546241632,0.00265998,66859.0,66858.0,1.95463321]
[1721546241831,0.00265998,66859.0,66858.0,1.6692142]
[1721546246804,0.00265998,66859.0,66858.0,1.9094512]
[1721546247904,0.00265998,66859.0,66858.0,2.00257074]
[1721546248108,0.00265998,66859.0,66858.0,2.16435188]
[1721546248910,0.00265998,66859.0,66858.0,2.00257074]
[1721546250422,0.00265998,66859.0,66858.0,1.84736607]
[1721546251096,0.00265998,66859.0,66858.0,2.00257032]
[1721546251461,0.00265998,66859.0,66858.0,1.84736607]
[1721546252060,0.00265998,66859.0,66858.0,2.00257022]
[1721546252237,0.00265998,66859.0,66858.0,1.84736607]
[1721546253127,0.00265998,66859.0,66858.0,1.90944773]
[1721546254304,0.00265998,66859.0,66858.0,2.19529565]
[1721546254980,0.00265998,66859.0,66858.0,2.35049952]
[1721546256253,0.00265998,66859.0,66858.0,2.33649952]
[1721546256573,0.00265998,66859.0,66858.0,2.35049952]
[1721546257139,0.00265998,66859.0,66858.0,2.33649952]
[1721546257570,0.00265998,66859.0,66858.0,2.35049952]
[1721546257901,0.00265998,66859.0,66858.0,2.50256994]
[1721546258107,0.00265998,66859.0,66858.0,2.69536913]
[1721546258309,0.00265998,66859.0,66858.0,2.85057292]
[1721546258509,0.00265998,66859.0,66858.0,2.69536913]
[1721546258739,0.00265998,66859.0,66858.0,2.68136913]
[1721546259253,0.00265998,66859.0,66858.0,3.01624738]
[1721546259449,0.00265998,66859.0,66858.0,3.15745117]
[1721546259803,0.00265998,66859.0,66858.0,3.17145117]
[1721546260003,0.00265998,66859.0,66858.0,3.18545117]
[1721546260195,0.00265998,66859.0,66858.0,3.26100959]
[1721546260404,0.00265998,66859.0,66858.0,3.27500959]
[1721546261384,0.00265998,66859.0,66858.0,2.63045733]
[1721546261768,0.00265998,66859.0,66858.0,2.63045723]
[1721546263798,0.00265998,66859.0,66858.0,2.63047336]
[1721546263998,0.00265998,66859.0,66858.0,2.61647336]
[1721546264430,0.00265998,66859.0,66858.0,1.85786986]
[1721546264600,0.00265998,66859.0,66858.0,2.61655632]
[1721546264830,0.00265998,66859.0,66858.0,2.61605632]
[1721546265075,0.00265998,66859.0,66858.0,2.63005632]
[1721546265276,0.00265998,66859.0,66858.0,2.63055632]
[1721546266670,0.00265998,66859.0,66858.0,2.58855632]
[1721546267075,0.00265998,66859.0,66858.0,2.61655632]
[1721546267504,0.00265998,66859.0,66858.0,2.58855632]
[1721546267706,0.00265998,66859.0,66858.0,2.60255632]
[1721546267912,0.00265998,66859.0,66858.0,2.60241238]
[1721546268045,0.00265998,66859.0,66858.0,2.61641238]
[1721546270259,0.00265998,66859.0,66858.0,2.60241238]
[1721546270905,0.00265998,66859.0,66858.0,1.84386986]
[1721546271107,0.00265998,66859.0,66858.0,2.61605092]
[1721546271316,0.00265998,66859.0,66858.0,2.60205092]
[1721546271512,0.00265998,66859.0,66858.0,2.58805092]
[1721546271774,0.00265998,66859.0,66858.0,2.60205092]
[1721546271930,0.00265998,66859.0,66858.0,2.61605092]
[1721546272307,0.00265998,66859.0,66858.0,2.60205092]
[1721546273350,0.14925998,66859.0,66858.0,2.60205092]
[1721546273551,0.14925998,66859.0,66858.0,2.49845697]
[1721546273956,0.14925998,66859.0,66858.0,2.51245697]
[1721546274175,0.14925998,66859.0,66858.0,1.52180049]
[1721546274394,0.14925998,66859.0,66858.0,1.55350235]
[1721546274610,0.14925998,66859.0,66858.0,1.56750235]
[1721546274847,0.14925998,66859.0,66858.0,1.53669654]
[1721546275350,0.14925998,66859.0,66858.0,1.50869654]
[1721546275596,0.14925998,66859.0,66858.0,1.54569654]
[1721546276249,0.14925998,66859.0,66858.0,1.55969654]
[1721546276824,0.14925998,66859.0,66858.0,1.79900954]
[1721546277240,0.14925998,66859.0,66858.0,1.45131374]
[1721546277415,0.14925998,66859.0,66858.0,1.84378851]
[1721546280252,0.14925998,66859.0,66858.0,1.51339912]
[1721546280468,0.14925998,66859.0,66858.0,1.79911036]
[1721546281084,0.14925998,66859.0,66858.0,1.84392876]
[1721546281355,0.14925998,66859.0,66858.0,1.77582876]
[1721546281555,0.14925998,66859.0,66858.0,1.84392876]
[1721546281914,0.14925998,66859.0,66858.0,1.79961036]
[1721546282140,0.14925998,66859.0,66858.0,1.79911036]
[1721546282318,0.14925998,66859.0,66858.0,1.79961036]
[1721546282718,0.14925998,66859.0,66858.0,1.79993057]
[1721546283234,0.14925998,66859.0,66858.0,1.86715994]
[1721546283432,0.08465998,66859.0,66858.0,1.86715994]
[1721546283635,0.08465998,66859.0,66858.0,2.18974884]
[1721546284847,0.00265998,66859.0,66858.0,2.3733718]
[1721546285578,0.00265998,66859.0,66858.0,2.3593718]
[1721546285812,0.00265998,66859.0,66858.0,2.07333745]
[1721546286021,0.00265998,66859.0,66858.0,2.37286123]
[1721546286229,0.00265998,66859.0,66858.0,2.6401091]
[1721546286464,0.00265998,66859.0,66858.0,2.52806015]
[1721546287293,0.00265998,66859.0,66858.0,3.32406015]
[1721546287563,0.00265998,66859.0,66858.0,2.51406015]
[1721546288208,0.00265998,66859.0,66858.0,2.52806015]
[1721546288412,0.00265998,66859.0,66858.0,2.51406015]
[1721546289057,0.00836,66866.0,66858.0,3.27488703]
[1721546289262,0.00836,66866.0,66865.0,1.73803184]
[1721546289472,0.00836,66866.0,66865.0,2.54822603]
[1721546289680,0.00836,66866.0,66865.0,2.57122603]
[1721546291829,0.002,66869.0,66865.0,2.57122603]
[1721546291830,0.002,66869.0,66868.0,1.32806233]
[1721546292050,0.02008022,66872.0,66871.0,0.13167233]
[1721546292283,0.1363,66881.0,66874.0,0.37092133]
[1721546292487,0.00837,66884.0,66874.0,1.70454576]
[1721546292701,0.0751,66883.0,66874.0,2.4982899]
[1721546293348,0.00837,66884.0,66874.0,2.4982899]
[1721546293349,0.00837,66884.0,66878.0,1.08862333]
[1721546293556,0.00837,66884.0,66878.0,2.3237719]
[1721546293987,0.00837,66884.0,66881.0,1.32780433]
[1721546294201,0.00837,66884.0,66881.0,2.22991684]
[1721546294404,0.00837,66884.0,66881.0,2.26287186]
[1721546295031,0.00837,66884.0,66881.0,2.26301547]
[1721546295270,0.00837,66884.0,66881.0,2.27701547]
[1721546295483,0.0632,66889.0,66881.0,2.27701547]
[1721546295484,0.002,66889.0,66888.0,0.01203933]
[1721546295692,0.002,66889.0,66888.0,0.72762247]
[1721546295903,0.002,66889.0,66888.0,1.61003747]
[1721546296147,0.002,66889.0,66888.0,2.02364747]
[1721546296362,0.002,66889.0,66888.0,1.85931065]
[1721546296844,0.002,66889.0,66888.0,1.79725646]
[1721546297076,0.002,66889.0,66888.0,1.79675646]
[1721546297296,0.0632,66889.0,66888.0,1.54601213]
[1721546297478,0.0632,66889.0,66888.0,1.55755146]
[1721546297934,0.002,66889.0,66888.0,1.70165146]
[1721546298154,0.002,66889.0,66888.0,1.7021496]
[1721546298366,0.002,66889.0,66888.0,1.5720496]
[1721546298367,0.00196,66889.0,66888.0,1.5720496]
[1721546298579,0.00196,66889.0,66888.0,1.5860496]
[1721546299000,0.00196,66889.0,66888.0,1.5580496]
[1721546299219,0.00196,66889.0,66888.0,1.8252546]
[1721546299878,0.00836,66897.0,66896.0,1.32751233]
[1721546300062,0.00836,66897.0,66896.0,1.7971006]
[1721546300483,0.00836,66897.0,66896.0,1.7966006]
[1721546301097,0.00836,66897.0,66896.0,1.55740855]
[1721546301818,0.00836,66897.0,66896.0,1.48930855]
[1721546302060,0.00836,66897.0,66896.0,1.55740855]
[1721546302383,0.00836,66897.0,66896.0,1.57140855]
[1721546303286,0.00836,66897.0,66896.0,1.58590855]
[1721546304147,0.00836,66897.0,66896.0,1.70099407]
[1721546304374,0.00836,66897.0,66896.0,1.82508539]
[1721546304577,0.00836,66897.0,66896.0,1.58540839]
[1721546304781,0.14466,66897.0,66896.0,1.57386906]
[1721546305209,0.14466,66897.0,66896.0,1.55986906]
[1721546305622,0.14466,66897.0,66896.0,1.58540839]
[1721546306032,0.14466,66897.0,66896.0,1.57140839]
[1721546306440,0.14466,66897.0,66896.0,1.58540839]
[1721546309224,0.00836,66897.0,66896.0,1.58540839]
[1721546310181,0.00836,66897.0,66896.0,1.33469206]
[1721546310182,0.14466,66897.0,66896.0,1.33469206]
[1721546310463,0.14466,66897.0,66896.0,1.33469515]
[1721546310909,0.14466,66897.0,66896.0,1.33469634]
[1721546311121,0.14466,66897.0,66896.0,1.24359634]
[1721546311353,0.19416,66897.0,66896.0,1.00442581]
[1721546311553,0.14466,66897.0,66896.0,1.00442581]
[1721546311774,0.19416,66897.0,66896.0,1.00442581]
[1721546311948,0.19416,66897.0,66896.0,0.99042581]
[1721546311949,0.14466,66897.0,66896.0,0.99042581]
[1721546312356,0.19416,66897.0,66896.0,0.99042581]
[1721546312569,0.14466,66897.0,66896.0,1.01342581]
[1721546312975,0.14466,66897.0,66896.0,0.90332374]
[1721546313171,0.14466,66897.0,66896.0,1.02743419]
[1721546313593,0.14466,66897.0,66896.0,0.90332374]
[1721546313779,0.14466,66897.0,66896.0,1.2666112]
[1721546313930,0.14466,66897.0,66896.0,1.27815053]
[1721546314143,0.14466,66897.0,66896.0,1.26415053]
[1721546314407,0.14466,66897.0,66896.0,1.2526112]
[1721546314526,0.14466,66897.0,66896.0,1.2666112]
[1721546315213,0.14466,66897.0,66896.0,1.2526112]
[1721546315884,0.14466,66897.0,66896.0,1.2666112]
[1721546316540,0.14466,66897.0,66896.0,1.14250074]
[1721546316774,0.14466,66897.0,66896.0,1.26660093]
[1721546317374,0.14466,66897.0,66896.0,1.25260093]
[1721546317586,0.14466,66897.0,66896.0,1.26660093]
[1721546317960,0.14466,66897.0,66896.0,1.25260093]
[1721546318375,0.14466,66897.0,66896.0,1.26660093]
[1721546319108,0.00836,66897.0,66896.0,1.26660093]
[1721546319247,0.00836,66897.0,66896.0,1.43325638]
[1721546319651,0.00836,66897.0,66896.0,1.14250074]
[1721546319860,0.00836,66897.0,66896.0,1.43296953]
[1721546320694,0.00836,66897.0,66896.0,1.44696953]
[1721546321675,0.00836,66897.0,66896.0,1.41896953]
[1721546322978,0.00836,66897.0,66896.0,1.12850074]
[1721546323204,0.00836,66897.0,66896.0,1.41927685]
[1721546325130,0.00836,66897.0,66896.0,1.43327685]
[1721546326097,0.00836,66897.0,66896.0,1.14250074]
[1721546326304,0.00836,66897.0,66896.0,1.43334105]
[1721546326714,0.00836,66897.0,66896.0,1.67251805]
[1721546326921,0.00836,66897.0,66896.0,1.43334105]
[1721546329116,0.00836,66897.0,66896.0,1.44236002]
[1721546329320,0.00836,66897.0,66896.0,1.44234037]
[1721546330106,0.00836,66897.0,66896.0,1.68151737]
[1721546331510,0.00836,66897.0,66896.0,1.6930567]
[1721546332485,0.00836,66897.0,66896.0,1.40223604]
[1721546332660,0.00836,66897.0,66896.0,1.69313521]
[1721546333939,0.00836,66897.0,66896.0,1.75543521]
[1721546334162,0.00836,66897.0,66896.0,1.75493521]
[1721546334796,0.00836,66897.0,66896.0,1.75543521]
[1721546335631,0.00836,66897.0,66896.0,1.75453727]
[1721546335848,0.00836,66897.0,66896.0,1.9096474]
[1721546336485,0.00836,66897.0,66896.0,1.69273727]
[1721546336727,0.00836,66897.0,66896.0,1.8919572]
[1721546336939,0.00836,66897.0,66896.0,1.8924552]
[1721546337139,0.00836,66897.0,66896.0,1.7373453]
[1721546337368,0.00836,66897.0,66896.0,1.73740665]
[1721546337797,0.00836,66897.0,66896.0,1.73740834]
[1721546338182,0.00836,66897.0,66896.0,1.76073727]
[1721546338373,0.00836,66897.0,66896.0,1.82764932]
[1721546338792,0.00836,66897.0,66896.0,1.82777504]
[1721546339201,0.00836,66897.0,66896.0,1.76074438]
[1721546339409,0.00836,66897.0,66896.0,1.82777504]
[1721546339621,0.00836,66897.0,66896.0,1.82727504]
[1721546339841,0.00836,66897.0,66896.0,2.119427]
[1721546340047,0.00836,66897.0,66896.0,1.76024438]
[1721546340656,0.08436,66897.0,66896.0,1.82727504]
[1721546340860,0.08436,66897.0,66896.0,1.68070505]
[1721546341066,0.08436,66897.0,66896.0,1.76024438]
[1721546341269,0.08436,66897.0,66896.0,1.82728279]
[1721546341473,0.08436,66897.0,66896.0,1.76024438]
[1721546342284,0.08436,66897.0,66896.0,1.74870505]
[1721546342486,0.08436,66897.0,66896.0,1.50952805]
[1721546342694,0.14446,66897.0,66896.0,1.50952805]
[1721546344382,0.14446,66897.0,66896.0,1.51019554]
[1721546345464,0.14446,66897.0,66896.0,1.55489766]
[1721546345871,0.14446,66897.0,66896.0,1.51019554]
[1721546347491,0.14446,66897.0,66896.0,1.21951971]
[1721546347625,0.14446,66897.0,66896.0,1.51026525]
[1721546350686,0.14446,66897.0,66896.0,1.34361542]
[1721546350936,0.14446,66897.0,66896.0,1.51044271]
[1721546352082,0.14428007,66897.0,66896.0,1.51044271]
[1721546353680,0.14428007,66897.0,66896.0,1.21951971]
[1721546353886,0.14428007,66897.0,66896.0,1.55508051]
[1721546354558,0.00818007,66897.0,66896.0,1.79425751]
[1721546355738,0.00818007,66897.0,66896.0,2.26425172]
[1721546356147,0.00818007,66897.0,66896.0,1.74953863]
[1721546356346,0.00818007,66897.0,66896.0,1.79425788]
[1721546356968,0.00818007,66897.0,66896.0,1.79425772]
[1721546357895,0.00818007,66897.0,66896.0,1.80579705]
[1721546358113,0.06908007,66897.0,66896.0,1.48736163]
[1721546358316,0.14898007,66897.0,66896.0,1.47834266]
[1721546359268,0.14898007,66897.0,66889.0,0.120524]
[1721546359269,0.14886067,66890.0,66889.0,0.120524]
[1721546359547,0.22876067,66890.0,66889.0,0.27490574]
[1721546359795,0.22876067,66890.0,66889.0,0.51410774]
[1721546360994,0.22876067,66890.0,66889.0,0.52710774]
[1721546362494,0.18026067,66890.0,66889.0,0.84130974]
[1721546362742,0.1418,66890.0,66889.0,0.84130974]
[1721546363002,0.18026067,66890.0,66889.0,1.08051174]
[1721546363732,0.1418,66890.0,66889.0,1.08051174]
[1721546364451,0.18026067,66890.0,66889.0,1.08051174]
[1721546364924,0.1418,66890.0,66889.0,1.08051174]
[1721546367095,0.1418,66890.0,66889.0,1.19069928]
[1721546369337,0.1418,66890.0,66889.0,1.19062768]
[1721546371547,0.1418,66890.0,66889.0,1.08051174]
[1721546371646,0.1418,66890.0,66889.0,1.19051501]
[1721546372057,0.1418,66890.0,66889.0,1.21351501]
[1721546372694,0.1418,66890.0,66889.0,1.2135038]
[1721546375943,0.1418,66890.0,66889.0,1.21354706]
[1721546376573,0.1418,66890.0,66889.0,1.14554706]
[1721546376744,0.1913,66890.0,66889.0,1.12254706]
[1721546376945,0.22976067,66890.0,66889.0,0.88334506]
[1721546377146,0.22976067,66890.0,66889.0,0.77330974]
[1721546377347,0.22976067,66890.0,66889.0,0.88347365]
[1721546377590,0.18026067,66890.0,66889.0,0.88347365]
[1721546377792,0.22976067,66890.0,66889.0,0.88347365]
[1721546378981,0.22976067,66890.0,66889.0,0.88330153]
[1721546381308,0.18026067,66890.0,66889.0,0.88330153]
[1721546382139,0.18026067,66890.0,66889.0,0.88325819]
[1721546383887,0.22976067,66890.0,66889.0,0.88325819]
[1721546384092,0.18026067,66890.0,66889.0,0.88325819]
[1721546384496,0.22976067,66890.0,66889.0,0.88325819]
[1721546385314,0.22976067,66890.0,66889.0,0.88701931]
[1721546386505,0.001,66890.0,66889.0,1.12622131]
[1721546387020,0.001,66890.0,66889.0,1.14922131]
[1721546387295,0.0775,66890.0,66889.0,1.14922131]
[1721546388490,0.0775,66890.0,66889.0,1.14928881]
[1721546389001,0.127,66890.0,66889.0,1.14928881]
[1721546389276,0.127,66890.0,66889.0,0.91008681]
[1721546389531,0.1881,66890.0,66889.0,0.91008681]
[1721546389766,0.1881,66890.0,66889.0,1.14928881]
[1721546390466,0.1881,66890.0,66889.0,0.91008681]
[1721546390674,0.22656067,66890.0,66889.0,0.88708681]
[1721546391604,0.22656067,66890.0,66889.0,0.8874318]
[1721546397337,0.17706067,66890.0,66889.0,0.8874318]
[1721546397837,0.17706067,66890.0,66889.0,0.88724642]
[1721546398665,0.03946067,66890.0,66889.0,0.88724642]
[1721546400372,0.001,66890.0,66889.0,0.88724642]
[1721546400804,0.001,66890.0,66889.0,0.88665875]
[1721546402283,0.001,66890.0,66889.0,1.12586075]
[1721546403344,0.001,66890.0,66889.0,1.12585147]
[1721546406330,0.001,66890.0,66889.0,1.01251174]
[1721546406747,0.001,66890.0,66889.0,1.12936763]
[1721546409676,0.001,66890.0,66889.0,1.12921454]
[1721546410379,0.001,66890.0,66889.0,1.26771454]
[1721546410610,0.001,66890.0,66889.0,1.41313657]
[1721546410819,0.001,66890.0,66889.0,1.43613657]
[1721546411185,0.001,66890.0,66889.0,1.67533857]
[1721546412123,0.001,66890.0,66889.0,1.73739468]
[1721546412335,0.001,66890.0,66889.0,1.88215333]
[1721546412555,0.001,66890.0,66889.0,1.51321374]
[1721546412755,0.001,66890.0,66889.0,1.90422678]
[1721546412894,0.001,66890.0,66889.0,2.20205808]
[1721546413110,0.002,66899.0,66895.0,1.07631]
[1721546413315,0.002,66899.0,66895.0,1.43826347]
[1721546413719,0.14354,66896.0,66895.0,1.43826347]
[1721546413919,0.14354,66896.0,66895.0,1.37026347]
[1721546414120,0.14354,66896.0,66895.0,1.43826347]
[1721546414521,0.19304,66896.0,66895.0,0.86890347]
[1721546415337,0.19504,66896.0,66895.0,0.88690347]
[1721546415538,0.19504,66896.0,66895.0,0.77033174]
[1721546415763,0.19504,66896.0,66895.0,0.88719784]
[1721546416687,0.23350067,66896.0,66895.0,0.88719784]
[1721546418180,0.23350067,66896.0,66895.0,0.1348661]
[1721546418181,0.44545674,66896.0,66895.0,0.1348661]
[1721546418366,0.46592889,66896.0,66895.0,0.018]
[1721546418538,0.35308867,66896.0,66895.0,0.018]
[1721546418739,0.46182438,66896.0,66895.0,0.018]
[1721546418946,0.35208867,66896.0,66895.0,0.012]
[1721546419123,0.46022934,66896.0,66895.0,0.012]
[1721546419326,0.46522934,66896.0,66895.0,0.012]
[1721546419906,0.23066067,66891.0,66890.0,0.119597]
[1721546420143,0.35025967,66890.0,66889.0,0.000924]